bitfinex-derivatives/quotes_BTCF0:USTF0_20241213
["timestamp","ask_amount","ask_price","bid_price","bid_amount"]
[1734059320470,0.001,99719.0,99718.0,1.91924424]
[1734059320674,0.002,99719.0,99718.0,0.06744424]
[1734059321171,0.002,99719.0,99718.0,0.42824917]
[1734059321380,0.001,99719.0,99718.0,0.42624917]
[1734059321583,0.002,99719.0,99718.0,0.42824917]
[1734059321786,0.002,99719.0,99718.0,0.02291705]
[1734059322269,0.002,99719.0,99718.0,0.0812618]
[1734059323769,0.002,99719.0,99718.0,0.0722618]
[1734059323970,0.002,99719.0,99718.0,0.0812618]
[1734059325175,0.002,99719.0,99718.0,0.08127085]
[1734059325382,0.002,99719.0,99718.0,0.0693538]
[1734059325683,0.002,99719.0,99718.0,0.08130618]
[1734059327273,0.002,99719.0,99718.0,0.26013703]
[1734059327470,0.002,99719.0,99718.0,0.08130618]
[1734059328282,0.002,99719.0,99718.0,0.0693572]
[1734059328479,0.002,99719.0,99718.0,0.08126837]
[1734059328981,0.002,99719.0,99718.0,0.26009922]
[1734059329175,0.002,99719.0,99718.0,0.08126837]
[1734059329682,0.002,99719.0,99718.0,0.2604026]
[1734059329875,0.090048,99729.0,99718.0,1.53113606]
[1734059330067,0.050125,99735.0,99728.0,0.3608]
[1734059330268,0.050125,99735.0,99734.0,0.050125]
[1734059330469,0.050125,99735.0,99734.0,0.06206627]
[1734059331581,0.051125,99735.0,99734.0,0.06206627]
[1734059331782,0.052125,99735.0,99734.0,0.07106627]
[1734059332277,0.052125,99735.0,99734.0,0.07606627]
[1734059333882,0.002,99735.0,99734.0,0.07606627]
[1734059334280,0.18020098,99750.0,99745.0,0.05012]
[1734059334281,0.27013431,99746.0,99745.0,0.05012]
[1734059334493,0.050117,99750.0,99745.0,0.05012]
[1734059334494,0.11996935,99748.0,99747.0,0.050119]
[1734059334783,0.11996935,99750.0,99749.0,0.050118]
[1734059334971,0.11996935,99752.0,99749.0,0.02014732]
[1734059335172,0.11996935,99753.0,99751.0,0.050117]
[1734059335374,0.050116,99753.0,99752.0,0.01193587]
[1734059335777,0.15036612,99753.0,99752.0,0.01193587]
[1734059337582,0.10925012,99753.0,99752.0,0.01193587]
[1734059337986,0.11825012,99753.0,99752.0,0.01193587]
[1734059338177,0.10925012,99753.0,99752.0,0.01193587]
[1734059338473,0.10925012,99753.0,99752.0,0.01293587]
[1734059338677,0.11525012,99753.0,99752.0,0.01393587]
[1734059340777,0.11525012,99753.0,99752.0,0.01392165]
[1734059343685,0.11525012,99753.0,99752.0,1.502]
[1734059343885,0.11525012,99753.0,99752.0,1.51392353]
[1734059345389,0.11525012,99753.0,99752.0,0.01392353]
[1734059352994,0.11525012,99753.0,99752.0,0.01391794]
[1734059356287,0.26541508,99753.0,99752.0,0.01391794]
[1734059357092,0.26541508,99753.0,99740.0,0.3608]
[1734059357299,0.050122,99741.0,99740.0,0.3608]
[1734059358099,0.050124,99738.0,99732.0,0.17904919]
[1734059358398,0.050122,99741.0,99740.0,0.009]
[1734059358801,0.050123,99739.0,99734.0,0.17904919]
[1734059359002,0.050123,99739.0,99731.0,0.050127]
[1734059359003,0.050123,99739.0,99735.0,0.18714228]
[1734059359194,0.050123,99739.0,99736.0,0.17904919]
[1734059359393,0.050123,99739.0,99737.0,0.18714213]
[1734059359594,0.050123,99739.0,99738.0,0.00809294]
[1734059360297,0.15038669,99739.0,99738.0,0.00809294]
[1734059360995,0.15138669,99739.0,99738.0,0.00809294]
[1734059361393,0.15038669,99739.0,99738.0,0.18714213]
[1734059361592,0.15038669,99739.0,99738.0,0.01709294]
[1734059361593,0.15138669,99739.0,99738.0,0.01709294]
[1734059361798,0.15238669,99739.0,99738.0,0.20014213]
[1734059362497,0.15238669,99739.0,99738.0,0.20014305]
[1734059362907,0.15238669,99739.0,99738.0,0.19204919]
[1734059363203,0.15238669,99739.0,99738.0,0.20014491]
[1734059363402,0.15238669,99739.0,99738.0,0.02109572]
[1734059363698,0.15238669,99739.0,99738.0,0.20043025]
[1734059364107,0.15238669,99739.0,99738.0,0.20042582]
[1734059364299,0.15238669,99739.0,99738.0,0.02109572]
[1734059364496,0.15238669,99739.0,99738.0,1.52109572]
[1734059365098,0.15238669,99739.0,99738.0,1.70041861]
[1734059365399,0.15238669,99739.0,99738.0,1.52109572]
[1734059365593,0.15238669,99739.0,99738.0,1.70041376]
[1734059366902,0.15238669,99739.0,99738.0,1.513]
[1734059367105,0.15238669,99739.0,99738.0,0.013]
[1734059368106,0.050127,99730.0,99728.0,0.17931804]
[1734059368300,0.12014161,99730.0,99725.0,0.17931804]
[1734059368499,0.12014161,99728.0,99723.0,0.17931804]
[1734059368901,0.050131,99723.0,99722.0,1.5006]
[1734059369096,0.050131,99723.0,99722.0,1.51182704]
[1734059369302,0.15039318,99723.0,99722.0,1.51182704]
[1734059370909,0.15139318,99723.0,99722.0,1.51282704]
[1734059371297,0.15239318,99723.0,99722.0,1.51482704]
[1734059371497,0.15139318,99723.0,99722.0,1.51382704]
[1734059371704,0.15239318,99723.0,99722.0,1.51382704]
[1734059371908,0.15139318,99723.0,99722.0,1.5]
[1734059372103,0.15239318,99723.0,99722.0,1.51181893]
[1734059372315,0.15239318,99723.0,99722.0,1.5]
[1734059372499,0.15239318,99723.0,99722.0,1.51181873]
[1734059373106,0.15239318,99723.0,99722.0,1.51281873]
[1734059373612,0.16233404,99723.0,99722.0,1.51281873]
[1734059375411,0.16233404,99723.0,99722.0,1.51281361]
[1734059381515,0.16233404,99723.0,99722.0,1.501]
[1734059381715,0.16233404,99723.0,99722.0,1.51281109]
[1734059384824,0.16233404,99723.0,99722.0,1.51281427]
[1734059389019,0.002,99723.0,99722.0,1.51281427]
[1734059389219,0.12014161,99735.0,99722.0,1.58131427]
[1734059389422,0.12014161,99736.0,99723.0,0.01181427]
[1734059389722,0.12014161,99736.0,99724.0,0.01986682]
[1734059389916,0.17026561,99736.0,99733.0,1.5]
[1734059390217,0.050124,99736.0,99734.0,0.01181427]
[1734059390436,0.001,99735.0,99733.0,1.5006]
[1734059390717,0.051125,99735.0,99734.0,0.01182072]
[1734059391223,0.051125,99735.0,99734.0,0.01182085]
[1734059391918,0.056125,99735.0,99734.0,0.01182085]
[1734059392813,0.065125,99735.0,99734.0,0.01182085]
[1734059393615,0.060125,99735.0,99734.0,0.01582085]
[1734059394124,0.059125,99735.0,99734.0,0.01182085]
[1734059394322,0.060125,99735.0,99734.0,0.01582189]
[1734059394515,0.18026661,99735.0,99734.0,0.01582189]
[1734059394716,0.17926661,99735.0,99734.0,0.01182189]
[1734059395018,0.17226661,99735.0,99734.0,0.01782189]
[1734059395318,0.052125,99735.0,99734.0,0.01782189]
[1734059395509,0.1523912,99735.0,99734.0,0.01782189]
[1734059396727,0.30255616,99735.0,99734.0,0.01682189]
[1734059396922,0.20113899,99735.0,99734.0,0.01682189]
[1734059399624,0.38142304,99735.0,99734.0,0.01682189]
[1734059399820,0.20113899,99735.0,99734.0,0.01682189]
[1734059400422,0.33267049,99735.0,99734.0,0.01682189]
[1734059400721,0.38141863,99735.0,99734.0,0.01683384]
[1734059401023,0.38141863,99735.0,99720.0,1.5]
[1734059401024,0.050132,99721.0,99720.0,1.5]
[1734059401519,0.050133,99718.0,99717.0,0.17931804]
[1734059401715,0.050134,99716.0,99714.0,0.17931804]
[1734059401916,0.050134,99716.0,99715.0,1.5]
[1734059402519,0.15041428,99716.0,99715.0,1.5]
[1734059403911,0.15141428,99716.0,99715.0,1.503]
[1734059404317,0.15241428,99716.0,99715.0,1.504]
[1734059404820,0.15241428,99716.0,99715.0,0.004]
[1734059405020,0.15241428,99716.0,99715.0,0.003]
[1734059406923,0.16245446,99716.0,99715.0,0.003]
[1734059407326,0.050141,99703.0,99702.0,1.67931804]
[1734059407528,0.050142,99701.0,99700.0,0.0356]
[1734059407919,0.050143,99699.0,99698.0,0.18082234]
[1734059408225,0.050143,99699.0,99698.0,0.0015043]
[1734059408427,0.050143,99699.0,99698.0,1.5015043]
[1734059408620,0.15042831,99699.0,99698.0,1.5015043]
[1734059409218,0.15142831,99699.0,99698.0,1.5025043]
[1734059409819,0.15142831,99699.0,99698.0,1.501]
[1734059410219,0.15242831,99699.0,99698.0,1.501]
[1734059410824,0.15242831,99699.0,99698.0,0.001]
[1734059411127,0.15242831,99699.0,99682.0,0.2394291]
[1734059411128,0.10228531,99699.0,99682.0,0.00092]
[1734059411424,0.05015,99684.0,99682.0,0.00092]
[1734059412127,0.10031046,99683.0,99682.0,0.00092]
[1734059412730,0.10031046,99683.0,99682.0,0.00192]
[1734059413734,0.10131046,99683.0,99682.0,0.00192]
[1734059414229,0.10231046,99683.0,99682.0,0.00092]
[1734059415129,0.11251114,99683.0,99682.0,0.00092]
[1734059420837,0.050151,99682.0,99675.0,0.3608]
[1734059421025,0.11251114,99683.0,99675.0,0.3608]
[1734059421225,0.002,99683.0,99681.0,0.050152]
[1734059421434,0.002,99683.0,99682.0,0.0377]
[1734059422333,0.10131901,99683.0,99671.0,1.5352]
[1734059422532,0.050156,99673.0,99671.0,1.5346]
[1734059423220,0.050156,99673.0,99671.0,1.584757]
[1734059423622,0.051156,99673.0,99671.0,1.584757]
[1734059424422,0.001,99673.0,99672.0,0.18738028]
[1734059424829,0.001,99673.0,99672.0,0.00806224]
[1734059425033,0.002,99673.0,99672.0,0.00806224]
[1734059425352,0.002,99673.0,99672.0,0.00806552]
[1734059425727,0.002,99673.0,99672.0,0.050157]
[1734059426329,0.002,99673.0,99672.0,0.05822977]
[1734059427834,0.3608,99702.0,99672.0,0.05822877]
[1734059428037,0.050145,99695.0,99691.0,0.050147]
[1734059428338,0.06336773,99700.0,99692.0,0.0692]
[1734059428339,0.10032857,99699.0,99692.0,0.0692]
[1734059428530,0.050146,99694.0,99692.0,0.119346]
[1734059428736,0.050146,99694.0,99693.0,0.00811343]
[1734059429129,0.050146,99694.0,99692.0,0.119346]
[1734059429327,0.15045394,99694.0,99693.0,0.00811364]
[1734059430233,0.15145394,99694.0,99693.0,0.00811364]
[1734059430739,0.15145394,99694.0,99692.0,0.0359]
[1734059430941,0.15145394,99694.0,99686.0,0.17886023]
[1734059430942,0.050147,99691.0,99686.0,0.17886023]
[1734059431232,0.050147,99691.0,99688.0,0.17886023]
[1734059431428,0.050147,99691.0,99689.0,0.18697222]
[1734059431630,0.050147,99691.0,99690.0,0.00811199]
[1734059432139,0.051147,99691.0,99690.0,0.18697222]
[1734059432738,0.051147,99691.0,99690.0,0.18897222]
[1734059433237,0.051147,99691.0,99690.0,0.01011199]
[1734059433734,0.052147,99691.0,99690.0,0.01111199]
[1734059435541,0.052147,99691.0,99690.0,0.19035575]
[1734059436127,0.052147,99691.0,99690.0,0.01111199]
[1734059436338,0.002,99691.0,99690.0,0.01111199]
[1734059437441,0.002,99691.0,99690.0,0.003]
[1734059437634,0.002,99691.0,99690.0,0.01109647]
[1734059437935,0.002,99691.0,99690.0,0.01109651]
[1734059440735,0.002,99691.0,99690.0,0.24960561]
[1734059440938,0.002,99691.0,99690.0,0.01109651]
[1734059443439,0.050141,99702.0,99701.0,0.050142]
[1734059443947,0.050141,99702.0,99701.0,1.550142]
[1734059444245,0.050141,99702.0,99701.0,1.5]
[1734059444542,0.051141,99702.0,99701.0,1.501]
[1734059444753,0.051141,99702.0,99701.0,0.001]
[1734059446340,0.052141,99702.0,99701.0,0.003]
[1734059449143,0.002,99702.0,99701.0,0.01107239]
[1734059451538,0.052141,99702.0,99701.0,0.01107239]
[1734059451746,0.052141,99702.0,99701.0,0.06121439]
[1734059453447,0.052141,99702.0,99701.0,0.0611825]
[1734059455449,0.17213192,99702.0,99701.0,0.0611825]
[1734059455949,0.052141,99702.0,99701.0,0.0611825]
[1734059456549,0.052141,99702.0,99701.0,0.053142]
[1734059456752,0.052141,99702.0,99701.0,0.23254706]
[1734059456950,0.002,99702.0,99701.0,0.23254706]
[1734059457154,0.09215864,99702.0,99701.0,0.0611776]
[1734059457451,0.002,99702.0,99701.0,0.10506206]
[1734059457643,0.002,99702.0,99701.0,0.39579488]
[1734059457849,0.002,99702.0,99701.0,0.16214783]
[1734059458039,0.002,99702.0,99701.0,0.45243131]
[1734059458244,0.002,99702.0,99701.0,0.46103651]
[1734059458443,0.002,99702.0,99701.0,0.75185961]
[1734059459348,0.002,99702.0,99701.0,0.16214783]
[1734059459947,0.002,99702.0,99701.0,0.16210914]
[1734059460149,0.052141,99702.0,99701.0,0.16210914]
[1734059460450,0.052141,99702.0,99701.0,0.11822468]
[1734059460645,0.052141,99702.0,99701.0,0.06113891]
[1734059461848,0.002,99702.0,99701.0,0.06113891]
[1734059462047,0.002,99702.0,99701.0,0.30024484]
[1734059462850,0.002,99702.0,99701.0,0.06113891]
[1734059463143,0.002,99702.0,99701.0,0.30024484]
[1734059464150,0.002,99702.0,99701.0,0.06113891]
[1734059464354,0.002,99702.0,99701.0,0.30024484]
[1734059465057,0.002,99702.0,99701.0,0.29223813]
[1734059465353,0.002,99702.0,99701.0,0.30025893]
[1734059465562,0.002,99702.0,99701.0,0.0611628]
[1734059465750,0.09012941,99707.0,99706.0,0.050139]
[1734059465950,0.11999092,99711.0,99706.0,0.050139]
[1734059465951,0.09012941,99711.0,99706.0,0.0080208]
[1734059466153,0.09012941,99713.0,99710.0,0.3608]
[1734059466453,0.09012287,99713.0,99711.0,0.18731356]
[1734059466655,0.09012287,99714.0,99712.0,0.23744956]
[1734059466860,0.15042939,99725.0,99713.0,1.5418208]
[1734059466861,0.09012287,99718.0,99713.0,1.5418208]
[1734059467065,0.050132,99722.0,99716.0,0.17926085]
[1734059467359,0.09009661,99719.0,99717.0,0.050134]
[1734059468362,0.09009661,99720.0,99719.0,0.050133]
[1734059468860,0.09009661,99721.0,99719.0,0.050133]
[1734059469159,0.09009661,99722.0,99721.0,0.050132]
[1734059469354,0.09109661,99722.0,99721.0,0.050132]
[1734059469559,0.09109661,99722.0,99721.0,0.410932]
[1734059469748,0.001,99722.0,99721.0,0.410932]
[1734059469950,0.00150439,99732.0,99722.0,0.050131]
[1734059470256,0.00150439,99732.0,99721.0,0.36886848]
[1734059470257,0.00150439,99732.0,99731.0,0.050127]
[1734059471660,0.01050439,99732.0,99731.0,0.050127]
[1734059472358,0.00150439,99732.0,99731.0,0.050127]
[1734059472656,0.01050439,99732.0,99731.0,0.050127]
[1734059472960,0.01950439,99732.0,99731.0,0.050127]
[1734059473264,0.018,99732.0,99731.0,0.050127]
[1734059475864,0.009,99732.0,99731.0,0.050127]
[1734059476059,0.009,99732.0,99731.0,0.052127]
[1734059476060,0.01,99732.0,99731.0,0.052127]
[1734059476467,0.001,99732.0,99731.0,0.052127]
[1734059476763,0.002,99732.0,99731.0,0.055127]
[1734059477664,0.002,99732.0,99731.0,0.056127]
[1734059478562,0.001,99732.0,99731.0,0.053127]
[1734059478766,0.002,99732.0,99731.0,0.058127]
[1734059478953,0.002,99732.0,99731.0,0.06614327]
[1734059479356,0.09009661,99750.0,99731.0,0.06614327]
[1734059479558,0.12619661,99759.0,99749.0,0.3608]
[1734059479763,0.0361,99759.0,99757.0,0.050114]
[1734059480967,0.10024258,99758.0,99750.0,1.5006]
[1734059481267,0.10024258,99758.0,99731.0,0.38002174]
[1734059481268,0.050114,99757.0,99731.0,0.54836749]
[1734059481457,0.050125,99735.0,99733.0,0.050126]
[1734059483676,0.052125,99735.0,99733.0,0.068126]
[1734059484374,0.050115,99754.0,99734.0,0.00801743]
[1734059484685,0.050115,99754.0,99752.0,0.050116]
[1734059484686,0.1503817,99754.0,99752.0,0.050116]
[1734059485179,0.050115,99754.0,99752.0,0.050116]
[1734059485765,0.060115,99754.0,99752.0,0.051116]
[1734059486268,0.06992772,99754.0,99752.0,0.051116]
[1734059486869,0.06992772,99754.0,99752.0,0.059116]
[1734059486870,0.06192772,99754.0,99752.0,0.059116]
[1734059487770,0.052115,99754.0,99752.0,0.059116]
[1734059488167,0.051115,99754.0,99752.0,0.059116]
[1734059488367,0.051115,99754.0,99752.0,0.063116]
[1734059489069,0.051115,99754.0,99752.0,0.054116]
[1734059489070,0.050115,99754.0,99752.0,0.054116]
[1734059489268,0.001,99754.0,99753.0,0.3608]
[1734059489676,0.001,99754.0,99753.0,0.36882466]
[1734059490370,0.002,99754.0,99753.0,0.36882466]
[1734059490867,0.001,99754.0,99753.0,0.36882466]
[1734059491173,0.002,99754.0,99753.0,0.37782466]
[1734059491568,0.002,99754.0,99753.0,0.39679203]
[1734059493284,0.0341,99772.0,99760.0,0.09652536]
[1734059493472,0.0341,99772.0,99764.0,0.3608]
[1734059493777,0.0341,99772.0,99765.0,1.5]
[1734059494780,0.0341,99772.0,99771.0,0.050106]
[1734059496071,0.0391,99772.0,99771.0,0.051106]
[1734059496279,0.0391,99772.0,99771.0,0.001]
[1734059496872,0.0391,99772.0,99771.0,0.002]
[1734059498574,0.13932902,99772.0,99771.0,0.002]
[1734059502283,0.22942563,99772.0,99771.0,0.002]
[1734059502984,0.13932902,99772.0,99771.0,0.002]
[1734059503286,0.22942563,99772.0,99771.0,0.002]
[1734059503590,0.13932902,99772.0,99771.0,0.002]
[1734059505886,0.25923038,99772.0,99771.0,0.002]
[1734059506685,0.13932902,99772.0,99771.0,0.002]
[1734059506874,0.2592468,99772.0,99771.0,0.002]
[1734059507073,0.13932902,99772.0,99771.0,0.002]
[1734059507279,0.2592468,99772.0,99771.0,0.002]
[1734059508274,0.13932902,99772.0,99771.0,0.002]
[1734059514287,0.28955871,99772.0,99771.0,0.002]
[1734059515584,0.10522902,99772.0,99771.0,0.002]
[1734059515896,0.12509632,99772.0,99771.0,0.002]
[1734059516494,0.005,99772.0,99771.0,0.002]
[1734059517292,0.12509632,99772.0,99771.0,0.002]
[1734059518993,0.005,99772.0,99771.0,0.002]
[1734059519185,0.10522902,99772.0,99771.0,0.002]
[1734059519385,0.25545871,99772.0,99771.0,0.002]
[1734059519884,0.10522902,99772.0,99771.0,0.002]
[1734059520292,0.10522902,99772.0,99771.0,0.00990892]
[1734059523190,0.10522902,99772.0,99771.0,0.00991675]
[1734059523985,0.10522902,99772.0,99771.0,0.002]
[1734059524188,0.10522902,99772.0,99771.0,0.00990553]
[1734059524988,0.10522902,99772.0,99771.0,0.00990794]
[1734059525590,0.10522902,99772.0,99771.0,0.002]
[1734059525794,0.20422902,99772.0,99771.0,0.002]
[1734059526791,0.25295804,99772.0,99771.0,0.002]
[1734059530189,0.43323367,99772.0,99771.0,0.002]
[1734059530399,0.43323367,99772.0,99759.0,0.17845134]
[1734059530602,0.050113,99758.0,99757.0,0.21045134]
[1734059530800,0.050113,99758.0,99757.0,0.03987517]
[1734059530991,0.050113,99758.0,99757.0,0.032]
[1734059531193,0.15035608,99758.0,99757.0,0.03987528]
[1734059531495,0.120194,99760.0,99757.0,0.03986478]
[1734059531695,0.120194,99760.0,99759.0,0.009]
[1734059532001,0.120194,99761.0,99759.0,0.0669758]
[1734059532188,0.120194,99761.0,99760.0,0.18682475]
[1734059532596,0.120194,99761.0,99760.0,0.17896095]
[1734059532901,0.120194,99761.0,99760.0,0.18681295]
[1734059533102,0.120194,99761.0,99760.0,0.17896095]
[1734059533504,0.05011,99764.0,99761.0,0.050111]
[1734059533505,0.120194,99764.0,99761.0,0.050111]
[1734059533801,0.01069081,99765.0,99762.0,0.00783715]
[1734059533802,0.0101708,99765.0,99762.0,0.00783715]
[1734059534005,0.120194,99766.0,99763.0,0.00783748]
[1734059534297,0.120194,99766.0,99760.0,0.24779566]
[1734059534298,0.12018193,99766.0,99765.0,0.17896781]
[1734059534504,0.09013342,99768.0,99765.0,0.05794648]
[1734059534696,0.09013342,99769.0,99767.0,0.28869997]
[1734059535010,0.09013342,99772.0,99771.0,0.050106]
[1734059535194,0.09013342,99772.0,99771.0,0.29650123]
[1734059535395,0.09013342,99774.0,99771.0,0.00783748]
[1734059535697,0.09013342,99774.0,99773.0,0.050105]
[1734059535887,0.09013342,99774.0,99773.0,0.05794248]
[1734059536506,0.14023742,99776.0,99775.0,0.050104]
[1734059536797,0.050104,99776.0,99775.0,0.050104]
[1734059537592,0.055104,99776.0,99775.0,0.051104]
[1734059537889,0.15117698,99776.0,99775.0,0.052104]
[1734059538704,0.061104,99776.0,99775.0,0.052104]
[1734059539108,0.15117698,99776.0,99775.0,0.052104]
[1734059539404,0.061104,99776.0,99775.0,0.052104]
[1734059541098,0.011,99776.0,99775.0,0.052104]
[1734059543095,0.10107298,99776.0,99775.0,0.052104]
[1734059543599,0.011,99776.0,99775.0,0.052104]
[1734059543801,0.011,99776.0,99775.0,0.05987452]
[1734059545008,0.10102065,99776.0,99775.0,0.052104]
[1734059545705,0.10102065,99776.0,99775.0,0.23864732]
[1734059546113,0.011,99776.0,99775.0,0.23864732]
[1734059546610,0.011,99776.0,99775.0,0.05985562]
[1734059546795,0.011,99776.0,99775.0,0.052104]
[1734059553121,0.10100197,99776.0,99775.0,0.05985747]
[1734059553301,0.10100197,99776.0,99775.0,0.230855]
[1734059553501,0.10100197,99776.0,99775.0,0.052104]
[1734059553701,0.011,99776.0,99775.0,0.23085699]
[1734059554608,0.011,99776.0,99775.0,0.052104]
[1734059555912,0.011,99776.0,99775.0,0.23085699]
[1734059559604,0.011,99776.0,99775.0,0.052104]
[1734059561514,0.161329,99776.0,99775.0,0.002]
[1734059561716,0.2815116,99776.0,99775.0,0.002]
[1734059562219,0.2814467,99776.0,99775.0,0.002]
[1734059562415,0.161329,99776.0,99775.0,0.002]
[1734059562915,0.2100535,99776.0,99775.0,0.002]
[1734059563103,0.2100535,99776.0,99759.0,0.050112]
[1734059563104,0.2100535,99776.0,99764.0,0.17880367]
[1734059563314,0.05011,99764.0,99763.0,0.17880367]
[1734059563611,0.21350927,99768.0,99761.0,0.17894134]
[1734059563911,0.050111,99762.0,99761.0,0.17894134]
[1734059564115,0.050111,99762.0,99753.0,0.050115]
[1734059564116,0.050113,99758.0,99757.0,0.17894134]
[1734059564516,0.050112,99760.0,99756.0,0.17890598]
[1734059564715,0.14022351,99757.0,99756.0,0.17890598]
[1734059565620,0.15035709,99757.0,99755.0,0.17890598]
[1734059565921,0.15135709,99757.0,99756.0,0.009]
[1734059566421,0.15135709,99757.0,99756.0,0.18780711]
[1734059567216,0.15235709,99757.0,99756.0,0.19680711]
[1734059567417,0.15235709,99757.0,99756.0,0.018]
[1734059567620,0.15135709,99757.0,99756.0,0.009]
[1734059567812,0.15235709,99757.0,99756.0,0.009]
[1734059569017,0.15135709,99757.0,99756.0,0.009]
[1734059569223,0.15235709,99757.0,99756.0,0.018]
[1734059570324,0.15235709,99757.0,99756.0,1.518]
[1734059576933,0.15235709,99757.0,99756.0,0.018]
[1734059579727,0.15235709,99757.0,99744.0,0.00150366]
[1734059579728,0.050115,99754.0,99744.0,0.00150366]
[1734059580031,0.050119,99746.0,99744.0,0.00150366]
[1734059580226,0.15139542,99745.0,99744.0,0.00150366]
[1734059580431,0.0314,99745.0,99744.0,0.00150366]
[1734059580833,0.16175163,99745.0,99744.0,0.00150366]
[1734059581021,0.16175163,99745.0,99744.0,0.01050366]
[1734059581228,0.16175163,99745.0,99744.0,0.01950366]
[1734059581946,0.16375163,99745.0,99744.0,0.01950366]
[1734059582236,0.16375163,99745.0,99744.0,0.018]
[1734059582425,0.050126,99732.0,99731.0,0.00107]
[1734059582737,0.14005474,99732.0,99731.0,0.00107]
[1734059582923,0.050126,99732.0,99731.0,0.00107]
[1734059583124,0.15038215,99732.0,99731.0,0.00107]
[1734059583628,0.10025615,99732.0,99704.0,0.050139]
[1734059583826,0.06329874,99714.0,99704.0,0.050139]
[1734059584828,0.050137,99709.0,99704.0,0.050139]
[1734059585426,0.050138,99708.0,99704.0,0.002]
[1734059585926,0.050139,99706.0,99704.0,0.002]
[1734059586123,0.05014,99703.0,99696.0,0.080744]
[1734059587132,0.05114,99703.0,99696.0,0.082744]
[1734059587324,0.001,99703.0,99696.0,0.0425954]
[1734059587525,0.001,99703.0,99699.0,0.050142]
[1734059588728,0.05114,99703.0,99699.0,0.050142]
[1734059589233,0.002,99703.0,99696.0,0.0425954]
[1734059589437,0.002,99703.0,99696.0,0.0326]
[1734059589735,0.002,99703.0,99696.0,0.0306]
[1734059590943,0.050143,99697.0,99696.0,0.0306]
[1734059591749,0.050143,99697.0,99696.0,0.0336]
[1734059592137,0.050143,99697.0,99696.0,0.0306]
[1734059592342,0.051143,99697.0,99696.0,0.0326]
[1734059592645,0.051143,99697.0,99696.0,0.0346]
[1734059593348,0.051143,99697.0,99696.0,0.0326]
[1734059593557,0.052143,99697.0,99696.0,0.0346]
[1734059594955,0.002,99697.0,99696.0,0.0346]
[1734059595256,0.050139,99706.0,99703.0,0.05014]
[1734059595457,0.06329874,99720.0,99701.0,0.050141]
[1734059595458,0.050139,99705.0,99701.0,0.050141]
[1734059595757,0.050139,99705.0,99702.0,0.05014]
[1734059596351,0.050139,99705.0,99703.0,0.05514]
[1734059597057,0.002,99706.0,99705.0,0.050139]
[1734059597058,0.001,99706.0,99705.0,0.050139]
[1734059598261,0.410934,99715.0,99711.0,0.050136]
[1734059598650,0.15043036,99714.0,99711.0,0.050136]
[1734059599258,0.15043036,99714.0,99712.0,0.050135]
[1734059599959,0.15143036,99714.0,99712.0,0.050135]
[1734059600454,0.15243036,99714.0,99712.0,0.054135]
[1734059601764,0.15243036,99714.0,99712.0,0.058135]
[1734059602148,0.15143036,99714.0,99712.0,0.054135]
[1734059602457,0.15243036,99714.0,99712.0,0.058135]
[1734059602664,0.15243036,99714.0,99712.0,0.057135]
[1734059603553,0.15243036,99714.0,99712.0,0.054135]
[1734059603554,0.15143036,99714.0,99712.0,0.054135]
[1734059603864,0.15243036,99714.0,99712.0,0.057135]
[1734059604958,0.15243036,99714.0,99712.0,0.007]
[1734059612361,0.27228216,99714.0,99712.0,0.007]
[1734059612963,0.1198518,99713.0,99712.0,0.007]
[1734059613561,0.10028782,99713.0,99712.0,0.007]
[1734059614765,0.10128782,99713.0,99712.0,0.007]
[1734059615063,0.22253966,99713.0,99712.0,0.007]
[1734059615267,0.10128782,99713.0,99712.0,0.003]
[1734059615459,0.10128782,99713.0,99712.0,0.007]
[1734059615460,0.10228782,99713.0,99712.0,0.007]
[1734059617663,0.10128782,99713.0,99712.0,0.007]
[1734059617972,0.10228782,99713.0,99712.0,0.007]
[1734059622662,0.15242282,99713.0,99712.0,0.007]
[1734059630670,0.10228782,99713.0,99712.0,0.057136]
[1734059631369,0.22260794,99713.0,99712.0,0.057136]
[1734059631763,0.22260794,99713.0,99712.0,0.06505619]
[1734059631966,0.10228782,99713.0,99712.0,0.29633167]
[1734059632174,0.10228782,99713.0,99712.0,0.057136]
[1734059633972,0.10228782,99713.0,99712.0,0.06507002]
[1734059634667,0.10228782,99713.0,99712.0,0.01493402]
[1734059634876,0.10228782,99713.0,99712.0,0.01495394]
[1734059636774,0.10228782,99713.0,99712.0,0.01495337]
[1734059637176,0.10228782,99713.0,99712.0,0.007]
[1734059637378,0.10228782,99713.0,99712.0,0.01495309]
[1734059638082,0.10228782,99713.0,99712.0,0.007]
[1734059638378,0.10228782,99713.0,99712.0,0.01495639]
[1734059642485,0.10228782,99713.0,99712.0,0.007]
[1734059642486,0.16598782,99713.0,99712.0,0.007]
[1734059643781,0.21474596,99713.0,99712.0,0.007]
[1734059646092,0.21374596,99713.0,99712.0,0.004]
[1734059646281,0.21374596,99713.0,99712.0,0.007]
[1734059647287,0.21374596,99713.0,99712.0,0.006]
[1734059647789,0.21374596,99713.0,99696.0,0.23919567]
[1734059647995,0.12028519,99697.0,99695.0,0.23919567]
[1734059648190,0.050145,99695.0,99694.0,7.684e-05]
[1734059648397,0.050145,99695.0,99694.0,0.23927251]
[1734059648594,0.15044992,99695.0,99694.0,0.23927251]
[1734059648787,0.15044992,99695.0,99694.0,7.684e-05]
[1734059649589,0.27066699,99695.0,99694.0,7.684e-05]
[1734059650084,0.050147,99691.0,99690.0,0.00150464]
[1734059650694,0.15045343,99691.0,99690.0,0.00150464]
[1734059651487,0.15145343,99691.0,99690.0,0.00150464]
[1734059651899,0.15245343,99691.0,99690.0,0.00150464]
[1734059653392,0.51325343,99691.0,99690.0,0.00150464]
[1734059653592,0.050152,99680.0,99679.0,0.0304]
[1734059653890,0.050148,99690.0,99673.0,0.28]
[1734059653891,0.050156,99674.0,99673.0,0.28]
[1734059654197,0.050156,99674.0,99668.0,0.4256]
[1734059654198,0.050156,99674.0,99668.0,0.66468487]
[1734059654390,0.050156,99674.0,99669.0,0.00792467]